bitfinex-derivatives/quotes_SOLF0:USTF0_20241103
["timestamp","ask_amount","ask_price","bid_price","bid_amount"]
[1730655184108,3.12,161.31,161.25,9.77456589]
[1730655184302,3.12,161.31,161.25,6.67286589]
[1730655184507,3.1012,161.29,161.25,6.67286589]
[1730655185404,3.1012,161.29,161.25,9.77456589]
[1730655185802,3.12,161.31,161.25,9.77456589]
[1730655185803,3.101,161.3,161.25,9.77456589]
[1730655186309,7.94776589,161.32,161.29,6.67286589]
[1730655186310,3.1005,161.32,161.29,6.67286589]
[1730655186727,3.12,161.34,161.29,6.67286589]
[1730655188714,3.1004,161.33,161.29,6.67286589]
[1730655189409,3.12,161.34,161.29,6.67286589]
[1730655189614,3.1005,161.32,161.29,6.67286589]
[1730655190411,3.12,161.34,161.26,1.3063]
[1730655190605,9.79286589,161.34,161.27,6.67286589]
[1730655192717,3.1008,161.31,161.27,6.67286589]
[1730655192917,9.79286589,161.34,161.27,6.67286589]
[1730655193912,3.101,161.3,161.27,6.67286589]
[1730655194116,6.67286589,161.32,161.26,6.67286589]
[1730655194313,3.1017,161.26,161.24,6.67286589]
[1730655194616,3.1017,161.26,161.22,6.67286589]
[1730655195821,3.1019,161.25,161.22,6.67286589]
[1730655196029,9.79286589,161.29,161.22,6.67286589]
[1730655196811,3.1019,161.25,161.22,6.67286589]
[1730655198014,9.79286589,161.29,161.22,6.67286589]
[1730655198314,3.12,161.29,161.24,6.67286589]
[1730655199124,3.1016,161.26,161.22,6.67286589]
[1730655199319,3.1016,161.26,161.22,9.77516589]
[1730655200521,9.79286589,161.29,161.22,6.67286589]
[1730655201916,3.102,161.25,161.22,6.67286589]
[1730655202614,3.102,161.25,161.22,9.77526589]
[1730655203728,3.12,161.29,161.24,6.67286589]
[1730655203910,3.1017,161.26,161.24,6.67286589]
[1730655207226,3.12,161.29,161.24,6.67286589]
[1730655207524,3.12,161.31,161.25,9.77456589]
[1730655207928,3.12,161.31,161.19,4.4683]
[1730655207929,3.1009,161.3,161.27,6.67286589]
[1730655208333,3.12,161.31,161.27,6.67286589]
[1730655208633,6.2207,161.31,161.27,9.77426589]
[1730655208835,6.67286589,161.35,161.27,6.67286589]
[1730655209131,3.1002,161.34,161.29,6.67286589]
[1730655211230,3.1002,161.34,161.29,9.77386589]
[1730655212227,3.1003,161.33,161.29,9.77386589]
[1730655213731,3.0999,161.35,161.31,3.1006]
[1730655216130,3.0999,161.35,161.3,6.67286589]
[1730655216337,3.0999,161.35,161.3,9.77366589]
[1730655218236,3.0999,161.35,161.3,6.67286589]
[1730655218542,3.0999,161.35,161.31,3.1006]
[1730655222638,49.38675225,161.41,161.31,3.1006]
[1730655222639,6.67286589,161.45,161.37,3.0994]
[1730655222836,6.67286589,161.45,161.31,55.20850513]
[1730655222837,9.79286589,161.45,161.38,6.67286589]
[1730655223040,1.2746,161.5,161.43,6.67286589]
[1730655223041,7.94746589,161.5,161.43,6.67286589]
[1730655223234,1.07754199,161.49,161.44,6.67286589]
[1730655223432,6.67286589,161.51,161.46,6.67286589]
[1730655223643,3.12,161.52,161.46,6.67286589]
[1730655223644,1.07738793,161.5,161.46,6.67286589]
[1730655223940,3.0971,161.5,161.46,6.67286589]
[1730655224242,11.10176589,161.53,161.46,6.67286589]
[1730655224439,3.097,161.51,161.46,6.67286589]
[1730655224743,6.67286589,161.51,161.44,6.67286589]
[1730655225339,4.4289,161.53,161.43,3.12]
[1730655225542,1.07717682,161.52,161.43,3.12]
[1730655225739,1.07717682,161.52,161.41,10.41362906]
[1730655225940,4.4289,161.53,161.42,3.12]
[1730655226133,3.0973,161.49,161.42,3.12]
[1730655227239,3.0973,161.49,161.42,6.2184]
[1730655227942,3.0971,161.5,161.43,3.0983]
[1730655228251,4.4289,161.53,161.42,3.12]
[1730655228546,3.0973,161.49,161.42,6.2185]
[1730655229442,3.0974,161.48,161.42,6.2185]
[1730655230742,4.4289,161.53,161.41,13.53362906]
[1730655230951,11.49082709,161.52,161.4,1.3236]
[1730655231145,1.07719803,161.51,161.39,13.53362906]
[1730655231643,3.0985,161.43,161.39,13.53362906]
[1730655232336,3.0987,161.42,161.39,10.41362906]
[1730655235257,13.53362906,161.47,161.36,10.41362906]
[1730655235448,2.6359,161.46,161.36,13.53362906]
[1730655235644,2.6359,161.46,161.36,10.41362906]
[1730655236151,3.0993,161.39,161.36,10.41362906]
[1730655237253,3.0995,161.38,161.35,7.4943]
[1730655238351,3.0995,161.38,161.35,4.3743]
[1730655238553,3.1,161.35,161.32,10.41362906]
[1730655239557,3.1,161.35,161.32,13.51392906]
[1730655240655,3.0994,161.38,161.35,3.0998]
[1730655240855,3.0994,161.38,161.31,56.49280513]
[1730655240856,3.12,161.43,161.34,10.41362906]
[1730655241564,10.41362906,161.42,161.31,63.78643419]
[1730655241758,10.41362906,161.42,161.31,52.08850513]
[1730655241950,3.1004,161.33,161.31,52.08850513]
[1730655242348,3.12,161.38,161.31,52.08850513]
[1730655242662,3.1001,161.34,161.31,52.08850513]
[1730655243254,3.0997,161.36,161.31,52.08850513]
[1730655243459,3.12,161.38,161.31,52.08850513]
[1730655243961,3.1003,161.33,161.31,52.08850513]
[1730655247464,3.1003,161.33,161.32,6.6684475]
[1730655250868,1.2999,161.41,161.32,6.6684475]
[1730655251161,6.6684475,161.44,161.37,6.6684475]
[1730655251355,3.12,161.43,161.37,6.6684475]
[1730655252353,3.0991,161.4,161.37,6.6684475]
[1730655256765,6.6684475,161.42,161.36,6.6684475]
[1730655257069,6.6684475,161.41,161.34,6.6684475]
[1730655257568,3.0999,161.35,161.34,6.6684475]
[1730655259267,3.0999,161.35,161.32,6.6684475]
[1730655260777,3.12,161.38,161.32,6.6684475]
[1730655260778,3.1001,161.34,161.32,6.6684475]
[1730655261169,3.12,161.38,161.32,6.6684475]
[1730655261364,4.4346,161.38,161.32,6.6684475]
[1730655261968,3.1002,161.34,161.32,6.6684475]
[1730655262367,4.4346,161.38,161.32,6.6684475]
[1730655263775,3.1005,161.32,161.31,6.6684475]
[1730655263969,2.7285,161.37,161.31,6.6684475]
[1730655265065,3.1004,161.33,161.31,6.6684475]
[1730655266174,3.1006,161.32,161.3,6.6684475]
[1730655266376,9.7884475,161.34,161.28,6.6684475]
[1730655267070,3.101,161.3,161.28,6.6684475]
[1730655268574,3.1004,161.33,161.28,6.6684475]
[1730655268769,9.7884475,161.34,161.28,6.6684475]
[1730655270387,3.12,161.34,161.29,6.6684475]
[1730655270568,3.12,161.36,161.32,6.6684475]
[1730655273287,3.1001,161.34,161.32,6.6684475]
[1730655273679,3.12,161.36,161.31,6.6684475]
[1730655273873,6.6684475,161.35,161.29,6.6684475]
[1730655275286,3.1006,161.32,161.29,6.6684475]
[1730655275482,3.1006,161.32,161.3,6.6684475]
[1730655275682,6.6684475,161.35,161.29,6.6684475]
[1730655277191,3.1007,161.31,161.29,6.6684475]
[1730655277577,6.6684475,161.35,161.29,6.6684475]
[1730655279597,6.6684475,161.34,161.27,6.6684475]
[1730655280885,3.1007,161.31,161.27,6.6684475]
[1730655281891,3.1007,161.31,161.27,9.7698475]
[1730655284296,6.6684475,161.34,161.27,9.7698475]
[1730655284597,3.1009,161.3,161.27,9.7698475]
[1730655285694,9.7684475,161.32,161.25,6.6684475]
[1730655285992,3.1,161.31,161.25,6.6684475]
[1730655286193,3.101,161.3,161.25,6.6684475]
[1730655286395,3.1,161.31,161.25,6.6684475]
[1730655286600,3.1,161.31,161.27,6.6684475]
[1730655287698,3.101,161.3,161.27,6.6684475]
[1730655291303,3.1009,161.3,161.27,6.6684475]
[1730655292200,8.0776475,161.37,161.29,6.6684475]
[1730655292405,3.12,161.36,161.32,6.6684475]
[1730655294402,3.1003,161.33,161.32,6.6684475]
[1730655295004,3.12,161.36,161.3,6.6684475]
[1730655295702,3.1004,161.33,161.3,6.6684475]
[1730655295907,3.12,161.36,161.32,6.6684475]
[1730655296901,3.1003,161.33,161.32,6.6684475]
[1730655297204,3.12,161.36,161.29,6.6684475]
[1730655297205,6.6684475,161.35,161.29,6.6684475]
[1730655297912,3.1006,161.32,161.29,6.6684475]
[1730655300292,6.6684475,161.35,161.29,6.6684475]
[1730655300509,6.6684475,161.34,161.28,6.6684475]
[1730655301003,3.1008,161.31,161.28,6.6684475]
[1730655301218,3.12,161.36,161.3,6.6684475]
[1730655301502,6.1998,161.36,161.33,6.6684475]
[1730655302110,3.1,161.36,161.33,6.6684475]
[1730655302408,3.1,161.39,161.34,6.6684475]
[1730655302609,6.6684475,161.42,161.36,6.6684475]
[1730655302821,3.1,161.41,161.37,6.6684475]
[1730655303709,6.1988,161.41,161.37,6.6684475]
[1730655303900,3.1,161.41,161.37,6.6684475]
[1730655304309,3.0991,161.4,161.37,6.6684475]
[1730655304509,3.1,161.41,161.35,6.6684475]
[1730655304811,6.6684475,161.4,161.34,6.6684475]
[1730655305010,3.0996,161.37,161.34,6.6684475]
[1730655305612,6.6684475,161.4,161.34,6.6684475]
[1730655305911,3.1,161.35,161.33,6.6684475]
[1730655308811,3.1001,161.34,161.33,6.6684475]
[1730655309003,9.7684475,161.37,161.31,6.6684475]
[1730655309194,3.1,161.37,161.33,6.6684475]
[1730655309399,6.6684475,161.4,161.34,6.6684475]
[1730655309600,3.1,161.4,161.34,6.6684475]
[1730655309906,3.0993,161.38,161.34,6.6684475]
[1730655310104,6.6684475,161.42,161.36,6.6684475]
[1730655310105,3.1,161.41,161.36,6.6684475]
[1730655310492,3.0994,161.38,161.36,6.6684475]
[1730655310908,3.0994,161.38,161.34,6.6684475]
[1730655313009,3.1,161.41,161.34,6.6684475]
[1730655313212,3.0995,161.37,161.34,6.6684475]
[1730655313912,3.0998,161.36,161.33,6.6684475]
[1730655318518,6.6684475,161.4,161.33,6.6684475]
[1730655318519,3.0999,161.35,161.33,6.6684475]
[1730655319118,6.6684475,161.4,161.33,6.6684475]
[1730655319811,3.0998,161.36,161.33,6.6684475]
[1730655320907,9.7684475,161.37,161.31,6.6684475]
[1730655321220,3.1005,161.32,161.31,6.6684475]
[1730655321811,9.7684475,161.37,161.31,6.6684475]
[1730655322015,3.1003,161.33,161.31,6.6684475]
[1730655325726,9.7684475,161.37,161.31,6.6684475]
[1730655325913,3.1005,161.32,161.31,6.6684475]
[1730655334732,3.1,161.38,161.32,3.1004]
[1730655334942,3.1,161.39,161.35,6.6684475]
[1730655335419,43.20009384,161.43,161.36,6.6684475]
[1730655335626,3.1,161.42,161.36,6.6684475]
[1730655336026,3.0992,161.39,161.36,6.6684475]
[1730655336930,3.099,161.4,161.36,6.6684475]
[1730655338032,3.1,161.42,161.36,6.6684475]
[1730655338722,3.099,161.4,161.36,6.6684475]
[1730655339229,3.1,161.42,161.38,6.6684475]
[1730655339427,6.6684475,161.46,161.39,6.6684475]
[1730655339630,3.1,161.45,161.39,6.6684475]
[1730655339826,3.0987,161.42,161.39,6.6684475]
[1730655340028,3.1,161.45,161.41,6.6684475]
[1730655340331,3.1,161.49,161.44,6.6684475]
[1730655340530,6.6684475,161.51,161.46,6.6684475]
[1730655340733,9.7684475,161.51,161.46,6.6684475]
[1730655341135,3.0973,161.49,161.46,6.6684475]
[1730655341838,6.6684475,161.5,161.43,6.6684475]
[1730655342037,3.1,161.51,161.41,8.0410475]
[1730655342038,6.6684475,161.48,161.41,8.0410475]
[1730655342332,3.0982,161.44,161.41,8.0410475]
[1730655342931,3.0982,161.44,161.41,6.6684475]
[1730655343431,3.1,161.47,161.41,6.6684475]
[1730655343633,6.6684475,161.45,161.4,6.6684475]
[1730655343843,6.6684475,161.41,161.33,6.6684475]
[1730655344032,6.6684475,161.36,161.3,6.6684475]
[1730655344236,3.1006,161.32,161.28,6.6684475]
[1730655344436,6.6684475,161.34,161.28,6.6684475]
[1730655344825,3.1007,161.31,161.28,6.6684475]
[1730655345242,6.6684475,161.34,161.28,6.6684475]
[1730655345443,3.1005,161.32,161.28,6.6684475]
[1730655346432,3.1005,161.32,161.29,6.6684475]
[1730655349029,6.6684475,161.34,161.28,6.6684475]
[1730655349245,3.1007,161.31,161.28,6.6684475]
[1730655349943,6.6684475,161.34,161.28,6.6684475]
[1730655350142,6.6684475,161.31,161.24,6.6684475]
[1730655350749,3.1014,161.28,161.24,6.6684475]
[1730655351146,6.6684475,161.31,161.24,9.7704475]
[1730655351347,3.1,161.32,161.24,3.102]
[1730655352240,3.1014,161.28,161.24,3.102]
[1730655354950,3.101,161.3,161.26,3.1015]
[1730655355247,11.72572582,161.4,161.27,10.42822582]
[1730655355552,3.1,161.38,161.27,10.42822582]
[1730655355947,3.1,161.38,161.3,3.1008]
[1730655357354,3.1,161.35,161.31,3.1006]
[1730655358155,3.1,161.35,161.3,3.1008]
[1730655358753,3.1002,161.34,161.29,3.101]
[1730655360251,3.0998,161.36,161.29,3.101]
[1730655360452,3.1,161.38,161.29,3.101]
[1730655361257,3.1003,161.33,161.28,3.1011]
[1730655362357,3.1003,161.33,161.29,3.101]
[1730655364158,3.1005,161.32,161.29,3.101]
[1730655364858,3.1,161.35,161.32,3.1003]
[1730655365250,3.1,161.38,161.27,13.00172582]
[1730655365460,1.3223,161.39,161.3,10.42822582]
[1730655365668,3.1,161.41,161.32,10.42822582]
[1730655366059,3.0991,161.4,161.36,3.0997]
[1730655367464,3.0988,161.41,161.37,3.0994]
[1730655368657,3.1,161.43,161.35,10.42822582]
[1730655368863,3.0987,161.42,161.35,10.42822582]
[1730655369967,3.0987,161.42,161.37,3.0993]
[1730655371383,3.0991,161.4,161.36,3.0996]
[1730655371569,3.1,161.43,161.34,3.1]
[1730655372269,3.0993,161.39,161.35,3.0999]
[1730655372971,3.0994,161.38,161.34,3.1]
[1730655373264,6.66571768,161.41,161.35,6.66571768]
[1730655373465,3.0996,161.37,161.35,6.66571768]
[1730655374874,3.0996,161.37,161.36,6.66571768]
[1730655375568,6.66571768,161.42,161.36,6.66571768]
[1730655375879,3.0993,161.39,161.36,9.76541768]
[1730655377279,3.0993,161.39,161.36,6.66571768]
[1730655377771,3.0993,161.38,161.36,6.66571768]
[1730655380377,6.66571768,161.42,161.36,6.66571768]
[1730655380570,3.1,161.43,161.36,6.66571768]
[1730655380877,3.1,161.43,161.37,6.66571768]
[1730655381177,3.099,161.4,161.37,9.76511768]
[1730655382067,3.0989,161.41,161.38,3.0992]
[1730655382272,3.1,161.42,161.37,6.66571768]
[1730655382478,9.76571768,161.42,161.36,6.66571768]
[1730655382671,9.76571768,161.42,161.36,9.76531768]
[1730655383175,3.099,161.4,161.37,3.0995]
[1730655384370,3.099,161.4,161.37,9.76521768]
[1730655386980,3.1,161.43,161.37,9.76521768]
[1730655387879,3.1,161.43,161.37,6.66571768]
[1730655388177,3.1,161.43,161.4,6.66571768]
[1730655388479,6.1985,161.43,161.4,6.66571768]
[1730655389676,3.0985,161.43,161.4,6.66571768]
[1730655394184,3.0983,161.44,161.4,9.76451768]
[1730655395498,3.1,161.45,161.4,6.66571768]
[1730655396887,3.0986,161.42,161.4,6.66571768]
[1730655401388,3.0994,161.38,161.34,9.76581768]
[1730655401584,9.76571768,161.4,161.32,6.66571768]
[1730655401886,3.1,161.39,161.32,6.66571768]
[1730655402084,3.1,161.39,161.32,9.76611768]
[1730655402481,1.2855,161.46,161.37,6.66571768]
[1730655402684,1.2855,161.46,161.42,6.66571768]
[1730655402883,43.22214198,161.48,161.44,6.66571768]
[1730655403185,3.0973,161.49,161.46,6.66571768]
[1730655403392,3.1,161.51,161.46,6.66571768]
[1730655404788,3.0972,161.49,161.46,6.66571768]
[1730655405678,3.1,161.51,161.47,6.66571768]
[1730655405679,3.0971,161.5,161.47,6.66571768]
[1730655406077,3.1,161.51,161.47,6.66571768]
[1730655406590,3.097,161.5,161.47,6.66571768]
[1730655407490,3.0971,161.5,161.47,6.66571768]
[1730655407979,3.1,161.51,161.45,6.66571768]
[1730655408186,3.0974,161.48,161.45,6.66571768]
[1730655411994,3.1,161.51,161.45,6.66571768]
[1730655412190,3.1,161.51,161.37,4.42088061]
[1730655412191,6.66571768,161.49,161.42,6.66571768]
[1730655412396,1.3086,161.48,161.42,6.66571768]
[1730655412589,3.0981,161.45,161.42,6.66571768]
[1730655415596,3.0984,161.43,161.41,6.66571768]
[1730655416399,3.0985,161.43,161.41,6.66571768]
[1730655417191,3.0985,161.42,161.41,6.66571768]
[1730655417396,3.0985,161.42,161.34,2.6617]
[1730655417397,6.66571768,161.45,161.39,6.66571768]
[1730655417596,6.66571768,161.42,161.36,6.66571768]
[1730655417795,3.0993,161.39,161.36,6.66571768]
[1730655418199,3.1,161.41,161.36,6.66571768]
[1730655418703,6.66571768,161.4,161.34,6.66571768]
[1730655418902,3.0998,161.36,161.34,6.66571768]
[1730655419199,6.66571768,161.39,161.33,6.66571768]
[1730655419602,3.1001,161.34,161.31,6.66571768]
[1730655421286,3.1001,161.34,161.3,3.1008]
[1730655421696,3.1001,161.34,161.29,3.101]
[1730655421898,3.1,161.36,161.31,10.42032389]
[1730655422401,3.0998,161.36,161.31,10.42032389]
[1730655422790,3.0998,161.36,161.31,13.52082389]
[1730655422990,3.0998,161.36,161.31,10.42032389]
[1730655423596,3.1,161.38,161.28,10.42032389]
[1730655423792,3.1001,161.34,161.29,3.101]
[1730655424106,3.1,161.34,161.29,3.101]
[1730655424311,6.2001,161.34,161.29,3.101]
[1730655424604,3.1,161.34,161.29,3.101]
[1730655424902,3.1004,161.33,161.29,3.101]
[1730655425404,3.1,161.37,161.28,10.42032389]
[1730655425607,3.1,161.37,161.29,1.2736]
[1730655425905,3.1,161.37,161.31,10.42032389]
[1730655426103,3.0998,161.36,161.33,3.1002]
[1730655426597,3.0998,161.36,161.31,10.42032389]
[1730655427397,3.0998,161.36,161.32,3.1004]
[1730655428116,3.1,161.37,161.29,1.2736]
[1730655429194,3.1002,161.34,161.3,3.1008]
[1730655429407,3.1,161.37,161.29,1.2736]
[1730655429804,3.0998,161.36,161.32,3.1004]
[1730655430109,3.1,161.37,161.3,10.42032389]
[1730655430704,3.1,161.37,161.29,1.2736]
[1730655431004,3.1,161.37,161.3,10.42032389]
[1730655431505,3.0999,161.35,161.32,3.1003]
[1730655431909,3.1,161.37,161.3,10.42032389]
[1730655432111,6.1996,161.37,161.33,3.1001]
[1730655433213,3.1,161.37,161.3,11.74842389]
[1730655433414,3.0999,161.35,161.32,3.1004]
[1730655436907,3.16,161.38,161.3,11.74842389]
[1730655437102,3.16,161.41,161.3,16.31572389]
[1730655437304,3.16,161.41,161.33,10.42032389]
[1730655437509,3.0991,161.39,161.36,3.0996]
[1730655438607,1.3164,161.45,161.36,10.42032389]
[1730655438817,10.42032389,161.49,161.37,1.4048]
[1730655439014,4.23742954,161.48,161.37,2.703]
[1730655439213,3.0982,161.44,161.41,3.0987]
[1730655439516,10.42032389,161.49,161.38,10.42032389]
[1730655439714,4.23737838,161.48,161.38,10.42032389]
[1730655439910,3.0982,161.44,161.41,3.0986]
[1730655440219,3.0982,161.44,161.38,10.42032389]
[1730655440522,13.58032389,161.48,161.37,1.4048]
[1730655440727,2.5863,161.47,161.37,4.5042]
[1730655441222,3.0989,161.4,161.37,1.4048]
[1730655441411,3.16,161.43,161.34,3.16]
[1730655442020,3.0991,161.4,161.34,3.16]
[1730655442514,3.0991,161.4,161.36,3.0996]
[1730655443617,3.16,161.43,161.36,3.0996]
[1730655443807,3.0991,161.39,161.36,3.0996]
[1730655445528,3.0995,161.37,161.35,3.0999]
[1730655445821,3.16,161.43,161.35,3.0999]
[1730655446720,3.16,161.43,161.36,3.0997]
[1730655447319,3.0995,161.37,161.33,55.18582773]
[1730655447518,3.16,161.43,161.33,52.08572773]
[1730655448121,3.0994,161.38,161.34,3.1]
[1730655450023,3.16,161.43,161.32,3.1004]
[1730655450024,3.0999,161.35,161.32,3.1004]
[1730655450528,3.16,161.39,161.31,1.3889]
[1730655450719,3.0996,161.37,161.34,3.1]
[1730655451922,3.16,161.39,161.32,10.42032389]
[1730655452118,3.0999,161.36,161.32,13.52072389]
[1730655452319,3.16,161.39,161.32,13.52072389]
[1730655453323,9.82748834,161.39,161.33,6.66748834]
[1730655453821,3.0995,161.38,161.33,6.66748834]
[1730655454026,3.16,161.39,161.35,3.0998]
[1730655454233,3.16,161.39,161.36,6.66748834]
[1730655454529,3.16,161.42,161.36,6.66748834]
[1730655455031,3.0994,161.38,161.36,6.66748834]
[1730655455533,3.0994,161.38,161.34,3.1]
[1730655456119,1.3613,161.46,161.38,3.0991]
[1730655456120,3.0984,161.43,161.38,3.0991]
[1730655456320,3.16,161.44,161.38,3.0991]
[1730655457123,3.0987,161.42,161.38,3.0991]
[1730655459527,3.0987,161.41,161.38,3.0991]
[1730655465841,3.14,161.44,161.33,11.81648141]
[1730655466432,3.14,161.44,161.35,10.41438141]
[1730655466433,3.0988,161.41,161.35,10.41438141]
[1730655467238,3.0985,161.43,161.38,10.41438141]
[1730655468237,3.14,161.47,161.38,10.41438141]
[1730655468443,3.0988,161.41,161.38,10.41438141]
[1730655468645,3.14,161.47,161.38,10.41438141]
[1730655468852,3.14,161.47,161.38,13.51358141]
[1730655469546,3.0987,161.42,161.38,13.51358141]
[1730655473149,10.41438141,161.45,161.33,11.81648141]
[1730655473332,3.0995,161.38,161.34,3.1001]
[1730655473535,3.0995,161.38,161.33,11.81648141]
[1730655475347,3.0995,161.38,161.35,3.0998]
[1730655476552,7.2279,161.44,161.35,3.0998]
[1730655477450,6.66458552,161.43,161.36,6.66458552]
[1730655478241,3.0992,161.39,161.36,6.66458552]
[1730655479242,3.0993,161.38,161.36,6.66458552]
[1730655482350,6.66458552,161.43,161.36,6.66458552]
[1730655482656,3.0992,161.39,161.36,6.66458552]
[1730655482841,6.66458552,161.41,161.35,6.66458552]
[1730655483044,3.0997,161.36,161.35,6.66458552]
[1730655483652,3.0997,161.36,161.32,53.42810415]
[1730655483653,3.0997,161.36,161.32,56.52840415]
[1730655483849,3.0999,161.35,161.33,6.66458552]
[1730655484455,3.0998,161.36,161.33,6.66458552]
[1730655484861,9.80458552,161.4,161.33,6.66458552]
[1730655485058,3.0999,161.35,161.33,6.66458552]
[1730655486349,3.1001,161.34,161.33,6.66458552]
[1730655488553,6.66458552,161.41,161.33,6.66458552]
[1730655488863,6.66458552,161.47,161.4,6.66458552]
[1730655489161,3.0981,161.45,161.42,6.66458552]
[1730655489562,6.66458552,161.47,161.42,6.66458552]
[1730655489747,3.0982,161.44,161.42,6.66458552]
[1730655490774,10.6992473,161.51,161.34,2.7737]
[1730655490775,10.6992473,161.51,161.46,3.0977]
[1730655490952,10.6992473,161.51,161.34,2.7737]
[1730655490953,14.8482473,161.56,161.5,6.66458552]
[1730655491151,4.149,161.56,161.5,6.66458552]
[1730655491358,3.0962,161.55,161.5,6.66458552]
[1730655491760,4.149,161.56,161.5,6.66458552]
[1730655492154,3.0964,161.54,161.5,6.66458552]
[1730655492762,6.66458552,161.66,161.53,6.66458552]
[1730655493054,4.0657,161.67,161.63,6.66458552]
[1730655493357,5.7789,161.67,161.6,10.40035941]
[1730655493554,2.6851,161.67,161.6,10.40035941]
[1730655493755,2.6851,161.67,161.58,3.0954]
[1730655493966,5.7851,161.67,161.58,3.0954]
[1730655494161,4.4801,161.67,161.57,13.50035941]
[1730655494464,19.38437302,161.78,161.66,10.40035941]
[1730655494465,10.40035941,161.78,161.66,10.40035941]
[1730655494672,10.40035941,161.81,161.68,10.40035941]
[1730655494875,13.09345941,161.83,161.69,3.1]
[1730655495171,3.1,161.82,161.69,3.1]
[1730655495655,3.0922,161.76,161.69,3.1]
[1730655496072,3.1,161.78,161.64,51.98187876]
[1730655496372,10.40035941,161.83,161.71,10.40035941]
[1730655496571,10.40035941,161.83,161.71,13.76035941]
[1730655497662,10.40035941,161.83,161.71,10.40035941]
[1730655497864,3.0913,161.8,161.72,3.0928]
[1730655499274,3.0916,161.79,161.71,13.49335941]
[1730655499472,3.36,161.82,161.71,10.40035941]
[1730655500370,3.0924,161.75,161.68,13.49395941]
[1730655500671,3.36,161.77,161.68,10.40035941]
[1730655501667,3.0924,161.75,161.68,10.40035941]
[1730655501861,3.36,161.77,161.68,10.40035941]
[1730655502057,3.36,161.77,161.66,10.40035941]
[1730655502461,2.7941,161.76,161.66,10.40035941]
[1730655502866,3.0932,161.71,161.66,10.40035941]
[1730655505276,3.0933,161.7,161.66,10.40035941]
[1730655506368,2.7941,161.76,161.66,10.40035941]
[1730655506369,3.0935,161.69,161.66,10.40035941]
[1730655506669,13.19445941,161.76,161.64,10.40035941]
[1730655506871,13.19445941,161.76,161.61,10.40035941]
[1730655506872,3.0942,161.65,161.61,10.40035941]
[1730655507672,3.094,161.66,161.61,10.40035941]
[1730655509055,3.36,161.7,161.61,10.40035941]
[1730655509558,2.7941,161.76,161.59,3.36]
[1730655509559,3.36,161.73,161.66,10.40035941]
[1730655509766,3.0932,161.7,161.66,10.40035941]
[1730655511073,3.0928,161.72,161.67,3.0936]
[1730655511260,3.36,161.73,161.66,10.40035941]
[1730655512667,10.40035941,161.79,161.66,10.40035941]
[1730655512870,10.40035941,161.86,161.72,10.40035941]
[1730655513080,1.0751197,161.85,161.72,10.40035941]
[1730655513369,3.0917,161.78,161.72,10.40035941]
[1730655513574,10.40035941,161.86,161.72,10.40035941]
[1730655513775,3.0922,161.76,161.72,10.40035941]
[1730655516364,3.0924,161.75,161.72,10.40035941]
[1730655516769,3.0916,161.79,161.72,10.40035941]
[1730655516975,3.36,161.81,161.72,10.40035941]
[1730655518670,3.0926,161.73,161.72,10.40035941]
[1730655519779,3.0925,161.74,161.72,10.40035941]
[1730655519976,4.0561,161.8,161.72,10.40035941]
[1730655520169,4.0561,161.8,161.74,10.40035941]
[1730655520366,3.0917,161.78,161.74,10.40035941]
[1730655520571,3.36,161.83,161.74,10.40035941]
[1730655520776,1.07501111,161.82,161.74,10.40035941]
[1730655521180,3.0916,161.79,161.74,13.49265941]
[1730655521373,3.36,161.83,161.74,13.49265941]
[1730655521578,1.07500781,161.82,161.74,10.40035941]
[1730655522572,3.36,161.83,161.74,10.40035941]
[1730655522773,1.07499156,161.82,161.74,10.40035941]
[1730655524077,3.092,161.76,161.74,10.40035941]
[1730655525078,3.36,161.83,161.72,3.36]
[1730655525079,3.36,161.83,161.72,10.40035941]
[1730655525270,10.40035941,161.8,161.66,13.49415941]
[1730655525577,1.07499318,161.79,161.66,13.49415941]
[1730655525778,3.0928,161.73,161.67,3.0936]
[1730655525977,3.36,161.76,161.66,10.40035941]
[1730655526179,3.36,161.76,161.69,10.40035941]
[1730655526573,3.0927,161.73,161.69,10.40035941]